bitfinex/quotes_BTCUSD_20250408
["timestamp","ask_amount","ask_price","bid_price","bid_amount"]
[1744070986766,0.019,79315.0,79314.0,0.269222]
[1744070987035,0.001,79315.0,79314.0,0.269222]
[1744070987238,0.34,79329.0,79323.0,0.264736]
[1744070987443,0.012603,79343.0,79326.0,0.012606]
[1744070987616,0.02705862,79339.0,79332.0,0.26471]
[1744070987821,0.01445462,79339.0,79332.0,0.26471]
[1744070987992,0.35445462,79339.0,79332.0,0.26471]
[1744070988201,0.36705862,79339.0,79332.0,0.26471]
[1744070988407,0.252086,79338.0,79332.0,0.26471]
[1744070988605,0.252092,79337.0,79330.0,0.264715]
[1744070989685,0.26469,79338.0,79332.0,0.26471]
[1744070989816,0.252092,79336.0,79330.0,0.264715]
[1744070990038,0.264696,79336.0,79330.0,0.264715]
[1744070990249,0.264696,79336.0,79331.0,0.012605]
[1744070990446,0.0091682,79333.0,79331.0,0.012605]
[1744070990984,0.0181682,79333.0,79331.0,0.012605]
[1744070991184,0.0001682,79333.0,79331.0,0.012605]
[1744070991588,0.0091682,79333.0,79331.0,0.012605]
[1744070992436,0.0181682,79333.0,79331.0,0.001]
[1744070992638,0.26471,79332.0,79331.0,0.001]
[1744070993255,0.0181682,79333.0,79332.0,0.012605]
[1744070993455,0.0181682,79333.0,79332.0,0.26471]
[1744070993655,0.0091682,79333.0,79332.0,0.26471]
[1744070993879,0.0001682,79333.0,79332.0,0.26471]
[1744070994827,0.0011682,79333.0,79332.0,0.26771]
[1744070995196,0.0011682,79333.0,79332.0,0.78955659]
[1744070995399,0.0011682,79333.0,79332.0,0.83545659]
[1744070995919,0.0021682,79333.0,79332.0,0.8538116]
[1744070996123,0.34,79352.0,79346.0,0.25206]
[1744070996291,0.012602,79350.0,79338.0,0.39245789]
[1744070996494,0.252066,79344.0,79338.0,0.39245789]
[1744070996964,0.252057,79347.0,79339.0,0.252082]
[1744070997121,0.012602,79348.0,79342.0,0.25207]
[1744070997308,0.264651,79350.0,79343.0,0.25207]
[1744070997511,0.15104,79351.0,79349.0,0.25205]
[1744070997795,0.15104,79351.0,79350.0,0.012602]
[1744070998007,0.01458298,79356.0,79354.0,0.252032]
[1744070998175,0.01458298,79356.0,79351.0,0.264646]
[1744070998380,0.252025,79357.0,79351.0,0.264646]
[1744070998594,0.34,79356.0,79350.0,0.012602]
[1744070998797,0.34,79354.0,79347.0,0.264658]
[1744070999002,0.252054,79349.0,79343.0,0.013603]
[1744070999370,0.012602,79350.0,79344.0,0.264669]
[1744070999552,0.012602,79351.0,79344.0,0.264669]
[1744070999762,0.012602,79350.0,79349.0,0.001]
[1744071000236,0.352602,79350.0,79349.0,0.001]
[1744071000765,0.264659,79348.0,79342.0,0.012603]
[1744071000970,0.264659,79348.0,79344.0,0.001]
[1744071001190,0.007,79350.0,79344.0,0.001]
[1744071001393,0.3401682,79362.0,79353.0,0.012601]
[1744071001598,0.0126,79360.0,79353.0,0.012601]
[1744071001835,0.604619,79360.0,79353.0,0.012601]
[1744071002024,0.0126,79359.0,79353.0,0.012601]
[1744071002179,0.264622,79359.0,79353.0,0.264639]
[1744071002534,0.0126,79359.0,79353.0,0.264639]
[1744071002824,0.001,79360.0,79354.0,0.264633]
[1744071003339,0.265617,79360.0,79354.0,0.012601]
[1744071003676,0.008,79359.0,79354.0,0.264633]
[1744071003882,0.008,79359.0,79356.0,0.012601]
[1744071004239,0.0001682,79362.0,79360.0,0.0126]
[1744071004646,0.009,79359.0,79357.0,0.012601]
[1744071005072,0.009,79359.0,79358.0,0.012601]
[1744071005273,0.018,79359.0,79358.0,0.40505889]
[1744071005575,0.001,79360.0,79359.0,0.310919]
[1744071006320,0.0091682,79362.0,79361.0,0.264612]
[1744071006520,0.0091682,79362.0,79361.0,0.78645859]
[1744071006731,0.0001682,79362.0,79361.0,0.78645859]
[1744071007170,0.0001682,79362.0,79361.0,0.80080531]
[1744071007635,0.0001682,79362.0,79361.0,0.80980531]
[1744071008219,0.0001682,79362.0,79361.0,0.80080531]
[1744071008618,0.0001682,79362.0,79361.0,0.80980531]
[1744071008619,0.0011682,79362.0,79361.0,0.80980531]
[1744071009453,0.0011682,79362.0,79361.0,0.81880531]
[1744071010852,0.352596,79390.0,79380.0,0.012597]
[1744071011032,0.34,79390.0,79384.0,0.251939]
[1744071011231,0.34,79390.0,79387.0,0.251928]
[1744071012059,0.34,79391.0,79386.0,0.264529]
[1744071012262,0.009,79390.0,79386.0,0.264529]
[1744071012464,0.009,79390.0,79387.0,0.012596]
[1744071013028,0.009,79390.0,79388.0,0.264523]
[1744071013353,0.01,79390.0,79389.0,0.012596]
[1744071013757,0.009,79390.0,79389.0,0.012596]
[1744071014234,0.01,79390.0,79389.0,0.012596]
[1744071014371,0.016,79390.0,79389.0,0.012596]
[1744071014765,0.001,79390.0,79389.0,0.012596]
[1744071014958,0.007,79390.0,79389.0,0.013596]
[1744071015161,0.007,79390.0,79389.0,0.53796176]
[1744071015414,0.007,79390.0,79389.0,0.53444259]
[1744071015626,0.007,79390.0,79389.0,0.53544259]
[1744071015835,0.013,79390.0,79389.0,0.53544259]
[1744071016040,0.013,79390.0,79389.0,0.58274259]
[1744071016174,0.012,79390.0,79389.0,0.58274259]
[1744071016375,0.012,79390.0,79389.0,0.58374259]
[1744071017092,0.012,79390.0,79389.0,0.58274259]
[1744071017301,0.012,79390.0,79389.0,0.65438189]
[1744071017499,0.000168,79392.0,79391.0,0.264512]
[1744071018903,0.000168,79392.0,79391.0,0.273512]
[1744071019594,0.000168,79392.0,79391.0,0.282512]
[1744071020001,6.503e-05,79392.0,79391.0,0.282512]
[1744071020924,6.503e-05,79392.0,79391.0,0.4119007]
[1744071022288,6.503e-05,79392.0,79391.0,0.4353114]
[1744071023050,6.503e-05,79392.0,79391.0,0.4119007]
[1744071023665,6.503e-05,79392.0,79391.0,0.4353163]
[1744071024484,6.503e-05,79392.0,79391.0,0.4830163]
[1744071025905,6.503e-05,79392.0,79391.0,0.4596007]
[1744071026111,6.503e-05,79392.0,79391.0,0.282512]
[1744071026508,6.503e-05,79392.0,79391.0,0.67496989]
[1744071029988,6.503e-05,79392.0,79391.0,0.80435859]
[1744071030184,6.503e-05,79392.0,79391.0,0.85205859]
[1744071030492,6.503e-05,79392.0,79391.0,0.89815859]
[1744071030880,6.503e-05,79392.0,79391.0,0.92162047]
[1744071032240,6.503e-05,79392.0,79391.0,0.93335591]
[1744071035646,3e-08,79392.0,79391.0,0.93335591]
[1744071036172,3e-08,79392.0,79391.0,0.91535591]
[1744071036379,3e-08,79392.0,79391.0,0.92435591]
[1744071036685,3e-08,79394.0,79393.0,0.604506]
[1744071036821,3e-08,79394.0,79393.0,0.7815947]
[1744071037019,3e-08,79394.0,79393.0,0.81679202]
[1744071037853,3e-08,79394.0,79393.0,0.82579202]
[1744071038283,3e-08,79394.0,79393.0,0.83479202]
[1744071040119,0.251808,79426.0,79419.0,0.264418]
[1744071040886,0.01259,79425.0,79419.0,0.264418]
[1744071041283,0.264396,79427.0,79421.0,0.012591]
[1744071041557,0.251189,79425.0,79419.0,0.265419]
[1744071041824,0.251189,79425.0,79419.0,0.252826]
[1744071042024,0.263779,79425.0,79419.0,0.013591]
[1744071042235,0.264779,79425.0,79419.0,0.013591]
[1744071042623,0.264779,79425.0,79421.0,0.001]
[1744071043343,0.264405,79424.0,79421.0,0.001]
[1744071043555,0.264409,79422.0,79421.0,0.001]
[1744071043750,0.264409,79422.0,79419.0,0.001]
[1744071043927,0.251825,79420.0,79419.0,0.001]
[1744071044138,0.012591,79421.0,79419.0,0.001]
[1744071044694,0.012591,79421.0,79416.0,0.012591]
[1744071045247,0.01259,79424.0,79419.0,0.002]
[1744071045435,0.264405,79424.0,79419.0,0.002]
[1744071045740,0.264405,79424.0,79417.0,0.251834]
[1744071045961,0.01259,79423.0,79419.0,0.002]
[1744071046550,0.012591,79420.0,79419.0,0.002]
[1744071046785,0.01259,79423.0,79419.0,0.002]
[1744071047120,0.2645659,79426.0,79419.0,0.253826]
[1744071047360,0.2645659,79426.0,79420.0,0.251823]
[1744071047573,0.264406,79423.0,79419.0,0.001]
[1744071047775,0.251816,79423.0,79418.0,0.26442]
[1744071047992,0.251816,79423.0,79414.0,0.64429989]
[1744071047993,0.012591,79421.0,79419.0,0.001]
[1744071048191,0.012591,79421.0,79419.0,0.002]
[1744071048454,0.012591,79421.0,79419.0,0.001]
[1744071048653,0.061191,79420.0,79419.0,0.001]
[1744071049259,0.061191,79420.0,79419.0,0.002]
[1744071050247,0.061191,79420.0,79419.0,0.001]
[1744071050455,0.251863,79408.0,79404.0,0.012593]
[1744071050854,0.012593,79409.0,79404.0,0.012593]
[1744071051263,0.264456,79409.0,79403.0,0.264469]
[1744071051467,0.012593,79407.0,79402.0,0.012594]
[1744071051678,0.012593,79408.0,79402.0,0.264473]
[1744071051847,0.012593,79408.0,79404.0,0.009]
[1744071052163,0.264456,79409.0,79403.0,0.012593]
[1744071052389,0.012592,79410.0,79403.0,0.273469]
[1744071052729,0.251845,79414.0,79408.0,0.251863]
[1744071052929,0.251845,79414.0,79408.0,0.264456]
[1744071053291,0.251851,79412.0,79407.0,0.012593]
[1744071053882,0.251851,79412.0,79407.0,0.264457]
[1744071054378,0.012592,79413.0,79408.0,0.264453]
[1744071054584,0.264442,79413.0,79408.0,0.012593]
[1744071055010,0.012592,79413.0,79408.0,0.264453]
[1744071055492,0.012592,79413.0,79408.0,0.273453]
[1744071056094,0.012592,79413.0,79408.0,0.282453]
[1744071058101,0.251851,79412.0,79408.0,0.282453]
[1744071058392,0.012592,79413.0,79408.0,0.282453]
[1744071058804,0.012592,79412.0,79408.0,0.018]
[1744071059018,0.33257088,79415.0,79409.0,0.251858]
[1744071060201,0.28287088,79415.0,79409.0,0.251858]
[1744071060519,0.01843588,79415.0,79409.0,0.264451]
[1744071060835,0.34,79423.0,79419.0,0.012591]
[1744071061014,0.34,79423.0,79421.0,0.012591]
[1744071061161,0.0001679,79426.0,79422.0,0.264409]
[1744071061906,0.3401679,79426.0,79422.0,0.264409]
[1744071062570,0.001,79423.0,79422.0,0.264409]
[1744071063884,0.0001679,79426.0,79425.0,0.264399]
[1744071064089,0.0001679,79426.0,79425.0,0.4430877]
[1744071064295,9e-07,79426.0,79425.0,0.83554559]
[1744071064487,9e-07,79426.0,79425.0,0.86300822]
[1744071064695,9e-07,79426.0,79425.0,0.88656798]
[1744071065215,0.0001681,79440.0,79438.0,0.264356]
[1744071065412,0.0001681,79440.0,79438.0,0.78620259]
[1744071067114,0.0001681,79440.0,79438.0,0.78720259]
[1744071067520,0.014588,79439.0,79438.0,0.39345789]
[1744071067720,0.002,79439.0,79438.0,0.39345789]
[1744071067924,0.002,79439.0,79438.0,0.40604589]
[1744071068103,0.002,79439.0,79438.0,0.41404589]
[1744071068683,0.002,79439.0,79438.0,0.42304589]
[1744071069640,0.002,79439.0,79438.0,0.55243459]
[1744071070600,0.002,79439.0,79438.0,0.60193459]
[1744071070977,0.002,79439.0,79438.0,0.62541693]
[1744071071339,0.000168,79442.0,79438.0,0.62541693]
[1744071071340,1e-07,79442.0,79439.0,0.264353]
[1744071071559,1e-07,79442.0,79441.0,0.7819347]
[1744071071928,1e-07,79442.0,79441.0,0.81715085]
[1744071072260,6.555e-05,79468.0,79467.0,0.012583]
[1744071072456,6.555e-05,79468.0,79467.0,0.83430559]
[1744071072962,6.555e-05,79468.0,79467.0,0.84361088]
[1744071073955,6.555e-05,79468.0,79467.0,0.84461088]
[1744071074536,6.555e-05,79468.0,79467.0,0.84561088]
[1744071077734,6.555e-05,79468.0,79467.0,0.66802218]
[1744071077955,6.555e-05,79468.0,79467.0,0.65871689]
[1744071079675,0.012581,79479.0,79472.0,0.012583]
[1744071079819,0.061281,79481.0,79474.0,0.012582]
[1744071080032,0.061281,79481.0,79476.0,0.012582]
[1744071080233,0.264216,79480.0,79475.0,0.012582]
[1744071080455,0.012581,79480.0,79473.0,0.264239]
[1744071080851,0.012581,79480.0,79475.0,0.251651]
[1744071081056,0.012581,79480.0,79474.0,0.012582]
[1744071081323,0.012581,79480.0,79476.0,0.001]
[1744071081523,0.012581,79479.0,79476.0,0.001]
[1744071081965,0.012582,79477.0,79476.0,0.001]
[1744071083450,0.012582,79477.0,79476.0,0.002]
[1744071083865,0.49651155,79477.0,79476.0,0.002]
[1744071084066,0.49651155,79477.0,79476.0,0.003]
[1744071087021,0.54351155,79477.0,79476.0,0.003]
[1744071088518,0.251727,79451.0,79450.0,0.39245789]
[1744071088690,0.251752,79444.0,79437.0,0.75211389]
[1744071088900,0.012586,79450.0,79440.0,0.012588]
[1744071089106,0.012586,79449.0,79443.0,0.012587]
[1744071089388,0.264322,79449.0,79443.0,0.012587]
[1744071089702,0.251722,79453.0,79450.0,0.018]
[1744071090203,0.012585,79454.0,79450.0,0.018]
[1744071090400,0.399584,79465.0,79457.0,0.012585]
[1744071090609,0.34,79476.0,79467.0,0.264258]
[1744071090805,0.24372,79482.0,79475.0,0.251651]
[1744071091011,0.012581,79480.0,79473.0,0.264238]
[1744071091227,0.3936077,79479.0,79472.0,0.012583]
[1744071091435,0.15052,79482.0,79476.0,0.012582]
[1744071091635,0.34,79481.0,79478.0,0.012582]
[1744071092011,0.34,79481.0,79475.0,0.251648]
[1744071092012,0.352581,79481.0,79475.0,0.251648]
[1744071092255,0.352581,79481.0,79475.0,0.26423]
[1744071092480,0.251609,79489.0,79480.0,0.264216]
[1744071092707,0.01258,79486.0,79480.0,0.264216]
[1744071092909,0.009,79481.0,79480.0,0.264216]
[1744071093116,0.009,79481.0,79478.0,0.013582]
[1744071093384,0.251632,79481.0,79472.0,0.264241]
[1744071093549,0.012581,79480.0,79474.0,0.251654]
[1744071093779,0.012581,79482.0,79480.0,0.001]
[1744071094090,0.03058,79487.0,79481.0,0.012581]
[1744071094496,0.01258,79485.0,79480.0,0.001]
[1744071094852,0.2642,79485.0,79480.0,0.001]
[1744071095312,0.004,79487.0,79484.0,0.012581]
[1744071095502,0.05,79490.0,79484.0,0.264203]
[1744071095702,0.264187,79489.0,79483.0,0.264207]
[1744071095904,0.264187,79489.0,79483.0,0.012581]
[1744071096104,0.01258,79488.0,79482.0,0.012581]
[1744071096261,0.01258,79488.0,79482.0,0.264207]
[1744071096466,0.260613,79487.0,79482.0,0.264207]
[1744071097108,0.260613,79487.0,79483.0,0.001]
[1744071097437,0.01258,79488.0,79482.0,0.264207]
[1744071097643,0.009,79487.0,79483.0,0.012581]
[1744071097791,0.009,79487.0,79484.0,0.251622]
[1744071098374,0.009,79487.0,79483.0,0.012581]
[1744071098781,0.251625,79484.0,79479.0,0.012581]
[1744071099002,0.26421,79483.0,79476.0,0.251648]
[1744071099406,0.012581,79484.0,79476.0,0.251648]
[1744071099407,0.012581,79484.0,79476.0,0.26423]
[1744071099618,0.251655,79474.0,79467.0,0.251674]
[1744071099819,0.264218,79480.0,79472.0,0.012583]
[1744071100128,0.009,79487.0,79486.0,0.264196]
[1744071100446,0.009,79487.0,79483.0,0.264206]
[1744071100608,0.009,79484.0,79483.0,0.264206]
[1744071102026,0.25161,79488.0,79483.0,0.264206]
[1744071102410,0.005,79487.0,79486.0,0.001]
[1744071102611,0.01758,79487.0,79486.0,0.001]
[1744071102922,0.01258,79487.0,79482.0,0.012581]
[1744071103122,0.01258,79487.0,79483.0,0.001]
[1744071103425,0.009,79484.0,79483.0,0.002]
[1744071103748,0.009,79484.0,79483.0,0.013581]
[1744071104149,0.009,79484.0,79483.0,0.001]
[1744071104333,0.02158,79487.0,79481.0,0.012581]
[1744071104499,0.009,79484.0,79483.0,0.001]
[1744071105835,0.014,79484.0,79483.0,0.002]
[1744071106420,0.264193,79488.0,79482.0,0.26421]
[1744071106606,0.005,79484.0,79483.0,0.001]
[1744071106810,0.014,79484.0,79483.0,0.002]
[1744071107524,0.014,79484.0,79483.0,0.014581]
[1744071108375,0.009,79484.0,79483.0,0.001]
[1744071108565,0.260622,79484.0,79483.0,0.001]
[1744071108766,0.273203,79484.0,79483.0,0.001]
[1744071109370,0.278203,79484.0,79483.0,0.002]
[1744071109817,0.327803,79484.0,79483.0,0.002]
[1744071110194,0.278203,79484.0,79483.0,0.002]
[1744071113528,0.026581,79484.0,79483.0,0.002]
[1744071114373,0.014,79484.0,79483.0,0.002]
[1744071115021,0.265622,79484.0,79483.0,0.002]
[1744071115227,0.278203,79484.0,79483.0,0.002]
[1744071115868,0.014,79484.0,79483.0,0.002]
[1744071117859,0.278203,79484.0,79483.0,0.002]
[1744071118639,0.4075917,79484.0,79483.0,0.002]
[1744071121271,0.7475917,79484.0,79483.0,0.002]
[1744071121602,0.80843255,79484.0,79483.0,0.002]
[1744071121733,0.937838,79484.0,79483.0,0.002]
[1744071121939,0.80843255,79484.0,79483.0,0.002]
[1744071124440,0.4833887,79484.0,79483.0,0.002]
[1744071124616,0.7475917,79484.0,79483.0,0.002]
[1744071124775,0.76213255,79484.0,79483.0,0.002]
[1744071125197,0.7475917,79484.0,79483.0,0.002]
[1744071125411,0.014,79484.0,79483.0,0.266207]
[1744071125616,0.026581,79484.0,79483.0,0.002]
[1744071126016,0.014,79484.0,79483.0,0.002]
[1744071126240,0.014,79484.0,79483.0,0.014581]
[1744071128441,0.014,79484.0,79483.0,0.002]
[1744071130569,0.014,79484.0,79483.0,0.014581]
[1744071130771,0.014,79484.0,79483.0,0.002]
[1744071132190,0.014,79484.0,79483.0,0.014581]
[1744071132998,0.014,79484.0,79483.0,0.002]
[1744071133578,0.026581,79484.0,79483.0,0.002]
[1744071135737,0.1559697,79484.0,79483.0,0.002]
[1744071137840,0.4959697,79484.0,79483.0,0.002]
[1744071138256,0.51051055,79484.0,79483.0,0.002]
[1744071139744,0.66095055,79484.0,79483.0,0.002]
[1744071143203,0.42440144,79484.0,79483.0,0.002]
[1744071143606,0.17756185,79484.0,79483.0,0.002]
[1744071148913,0.51756185,79484.0,79483.0,0.002]
[1744071151878,0.36712185,79484.0,79483.0,0.002]
[1744071153703,0.05,79490.0,79489.0,0.264187]
[1744071154747,0.05,79490.0,79489.0,0.265187]
[1744071156055,0.051,79490.0,79489.0,0.266187]
[1744071156524,0.0508971,79490.0,79489.0,0.266187]
[1744071156766,0.0508971,79490.0,79489.0,0.265187]
[1744071157686,0.0508971,79490.0,79489.0,0.266187]
[1744071158284,0.0508971,79490.0,79489.0,0.002]
[1744071158486,0.0518971,79490.0,79489.0,0.003]
[1744071158691,0.0644771,79490.0,79489.0,0.003]
[1744071158916,0.3160801,79490.0,79489.0,0.003]
[1744071159126,0.3160801,79490.0,79489.0,0.002]
[1744071159556,0.3160801,79490.0,79489.0,0.003]
[1744071162889,0.05721196,79490.0,79489.0,0.003]
[1744071163110,0.06979196,79490.0,79489.0,0.003]
[1744071167936,0.21372151,79490.0,79489.0,0.003]
[1744071168252,0.55372151,79490.0,79489.0,0.003]
[1744071178333,0.70412151,79490.0,79489.0,0.003]
[1744071189358,0.1504,79490.0,79489.0,0.003]
[1744071189585,0.2797887,79490.0,79489.0,0.003]
[1744071189818,0.264176,79493.0,79489.0,0.003]
[1744071190047,0.01258,79490.0,79489.0,0.003]
[1744071190977,0.01258,79490.0,79489.0,0.001]
[1744071191409,0.012581,79482.0,79479.0,0.0477]
[1744071192812,0.251632,79481.0,79479.0,0.0477]
[1744071193303,0.012581,79480.0,79479.0,0.0567]
[1744071193940,0.012581,79480.0,79479.0,0.0657]
[1744071194172,0.012581,79480.0,79479.0,0.018]
[1744071194372,0.012581,79480.0,79479.0,0.009]
[1744071194538,0.012581,79480.0,79479.0,0.018]
[1744071194725,0.012581,79480.0,79479.0,0.027]
[1744071195127,0.012581,79480.0,79479.0,0.018]
[1744071195531,0.012581,79480.0,79479.0,0.027]
[1744071199101,0.012581,79480.0,79479.0,0.018]
[1744071199301,0.012581,79480.0,79479.0,0.027]
[1744071199995,0.012581,79480.0,79479.0,0.009]
[1744071200190,0.012581,79480.0,79479.0,0.018]
[1744071202972,0.02712185,79480.0,79479.0,0.018]
[1744071203427,0.15651055,79480.0,79479.0,0.018]
[1744071204086,0.49651055,79480.0,79479.0,0.018]
[1744071204643,0.6483157,79480.0,79479.0,0.018]
[1744071205236,0.54481055,79480.0,79479.0,0.018]
[1744071205435,0.26429,79458.0,79457.0,0.0003362]
[1744071206430,0.61883085,79458.0,79457.0,0.0003362]
[1744071207547,0.61883085,79458.0,79457.0,0.0093362]
[1744071208136,0.64034112,79458.0,79457.0,0.0183362]
[1744071216663,0.76972982,79458.0,79457.0,0.0183362]
[1744071217025,0.76872982,79458.0,79457.0,0.0093362]
[1744071217302,0.76872982,79458.0,79457.0,0.0003362]
[1744071217589,0.78672982,79458.0,79457.0,0.0023362]
[1744071217939,0.77772982,79458.0,79457.0,0.0003362]
[1744071218161,0.77772982,79458.0,79457.0,0.0023362]
[1744071218391,0.79572982,79458.0,79457.0,0.0023362]
[1744071220371,0.52898306,79458.0,79457.0,0.0023362]
[1744071220574,0.54156806,79458.0,79457.0,0.0023362]
[1744071221379,0.38505351,79458.0,79457.0,0.0023362]
[1744071221602,0.06009527,79458.0,79457.0,0.0023362]
[1744071222514,0.31180027,79458.0,79457.0,0.0023362]
[1744071228872,0.012585,79458.0,79457.0,0.0023362]
[1744071229329,0.26429,79458.0,79457.0,0.0023362]
[1744071229700,0.28334638,79458.0,79457.0,0.0023362]
[1744071230159,0.28334638,79458.0,79451.0,0.0003362]
[1744071230160,0.26431,79452.0,79451.0,0.0003362]
[1744071230711,0.27885085,79452.0,79451.0,0.0003362]
[1744071231316,0.40823955,79452.0,79451.0,0.0003362]
[1744071231479,0.74823955,79452.0,79451.0,0.0013362]
[1744071231679,0.79493955,79452.0,79451.0,0.0013362]
[1744071233126,0.51219113,79452.0,79451.0,0.0003362]
[1744071233323,0.77650113,79452.0,79451.0,0.0003362]
[1744071233501,0.77950113,79452.0,79451.0,0.0013362]
[1744071233727,0.78350113,79452.0,79451.0,0.0023362]
[1744071233942,0.78650113,79452.0,79451.0,0.0033362]
[1744071234138,0.78250113,79452.0,79451.0,0.0023362]
[1744071234385,0.73980113,79452.0,79451.0,0.0033362]
[1744071234559,0.61431,79452.0,79451.0,0.0033362]
[1744071234764,0.362586,79452.0,79451.0,0.0033362]
[1744071235529,0.022586,79452.0,79451.0,0.0033362]
[1744071236432,0.016586,79452.0,79451.0,0.0013362]
[1744071236572,0.019586,79452.0,79451.0,0.0023362]
[1744071236911,0.015586,79452.0,79451.0,0.0013362]
[1744071237114,0.024586,79452.0,79451.0,0.0023362]
[1744071237320,0.012,79452.0,79451.0,0.0023362]
[1744071237698,0.024586,79452.0,79451.0,0.0023362]
[1744071239104,0.012,79452.0,79451.0,0.0023362]
[1744071239526,0.024586,79452.0,79451.0,0.0023362]
[1744071240534,0.012,79452.0,79451.0,0.0023362]
[1744071241079,0.012,79452.0,79451.0,0.0607222]
[1744071241528,0.012,79452.0,79451.0,0.2357109]
[1744071242465,0.15032,79484.0,79480.0,0.012581]
[1744071242689,0.15032,79484.0,79479.0,0.251638]
[1744071242898,0.012581,79483.0,79476.0,0.264227]
[1744071243706,0.26421,79482.0,79476.0,0.264227]
[1744071243908,0.26421,79482.0,79476.0,0.012582]
[1744071244132,0.003,79483.0,79482.0,0.26421]
[1744071244347,0.012,79483.0,79482.0,0.4849987]
[1744071244761,0.003,79483.0,79482.0,0.4849987]
[1744071245497,0.0001681,79490.0,79489.0,0.264187]
[1744071246741,0.0001681,79490.0,79484.0,0.251622]
[1744071246918,0.0157481,79490.0,79489.0,0.001]
[1744071247316,0.0031681,79490.0,79489.0,0.001]
[1744071247541,0.0157481,79490.0,79489.0,0.001]
[1744071247743,0.0031681,79490.0,79489.0,0.05938]
[1744071248101,0.0031681,79490.0,79489.0,0.06838]
[1744071249521,0.0001681,79490.0,79489.0,0.05838]
[1744071249727,0.0001681,79490.0,79489.0,0.06738]
[1744071250559,0.0001681,79490.0,79489.0,0.07638]
[1744071250761,0.0001681,79490.0,79489.0,0.25758471]
[1744071253225,0.0001679,79496.0,79495.0,0.359967]
[1744071253400,0.0001679,79496.0,79495.0,0.4893557]
[1744071254128,0.0001679,79496.0,79495.0,0.49885342]
[1744071254333,0.0001679,79496.0,79495.0,0.49985342]
[1744071254533,0.0041679,79496.0,79495.0,0.50085342]
[1744071255300,0.0031679,79496.0,79495.0,0.49985342]
[1744071255732,0.0001679,79496.0,79495.0,0.49885342]
[1744071255911,0.0001679,79496.0,79495.0,0.50785342]
[1744071257252,0.0001679,79496.0,79495.0,0.65809342]
[1744071257458,0.0001679,79496.0,79495.0,0.66709342]
[1744071258075,0.0001678,79509.0,79499.0,0.352578]
[1744071258076,8e-07,79501.0,79499.0,0.352578]
[1744071258249,4e-07,79509.0,79508.0,0.264124]
[1744071258571,4e-07,79509.0,79508.0,0.4893127]
[1744071259005,0.1482484,79538.0,79531.0,0.264047]
[1744071259180,0.251455,79537.0,79531.0,0.264047]
[1744071259384,0.264027,79537.0,79531.0,0.264047]
[1744071259747,0.264027,79537.0,79531.0,0.012573]
[1744071259945,0.012572,79536.0,79531.0,0.012573]
[1744071260204,0.012572,79536.0,79531.0,0.265047]
[1744071260437,0.012573,79535.0,79531.0,0.001]
[1744071260637,0.012573,79535.0,79531.0,0.002]
[1744071261163,0.012572,79536.0,79531.0,0.266046]
[1744071261403,0.264011,79542.0,79536.0,0.012572]
[1744071261614,0.251452,79538.0,79533.0,0.26404]
[1744071261808,0.264017,79540.0,79533.0,0.26404]
[1744071262008,0.012572,79539.0,79534.0,0.012573]
[1744071262327,0.264024,79538.0,79533.0,0.26404]
[1744071262501,0.012571,79542.0,79534.0,0.012573]
[1744071262830,0.264014,79541.0,79535.0,0.264034]
[1744071263602,0.012573,79534.0,79533.0,0.001]
[1744071263806,0.012572,79541.0,79533.0,0.001]
[1744071263807,0.251452,79539.0,79533.0,0.001]
[1744071264048,0.012572,79537.0,79533.0,0.001]
[1744071264208,0.012572,79538.0,79533.0,0.265039]
[1744071264412,0.012572,79538.0,79533.0,0.264039]
[1744071264606,0.264024,79539.0,79533.0,0.264039]
[1744071265012,0.264024,79539.0,79532.0,0.012573]
[1744071265013,0.264027,79537.0,79534.0,0.001]
[1744071265339,0.264027,79537.0,79531.0,0.264045]
[1744071265340,0.012572,79536.0,79531.0,0.012573]
[1744071265540,0.26405,79530.0,79522.0,0.012575]
[1744071265747,0.26405,79530.0,79524.0,0.012574]
[1744071265913,0.26405,79530.0,79523.0,0.012574]
[1744071266111,0.012574,79529.0,79523.0,0.012574]
[1744071266364,0.251483,79528.0,79523.0,0.012574]
[1744071266927,0.012574,79529.0,79524.0,0.009]
[1744071267649,0.012574,79529.0,79524.0,0.260496]
[1744071268021,0.012574,79529.0,79524.0,0.009]
[1744071268381,0.25149,79526.0,79520.0,0.264081]
[1744071268585,0.251483,79528.0,79524.0,0.009]
[1744071268785,0.012574,79529.0,79524.0,0.021574]
[1744071269291,0.012574,79529.0,79524.0,0.030574]
[1744071269496,0.25147,79533.0,79524.0,0.030574]
[1744071270058,0.298543,79541.0,79524.0,0.28207]
[1744071270422,0.25147,79533.0,79524.0,0.28207]
[1744071270625,0.012573,79531.0,79524.0,0.27307]
[1744071271025,0.25147,79533.0,79527.0,0.012574]
[1744071271410,0.012572,79536.0,79529.0,0.012574]
[1744071272031,0.264035,79535.0,79528.0,0.264057]
[1744071272561,0.251468,79533.0,79528.0,0.012574]
[1744071272803,0.251474,79532.0,79529.0,0.001]
[1744071273045,0.264047,79532.0,79529.0,0.001]
[1744071273503,0.264047,79532.0,79527.0,0.251486]
[1744071273915,0.264047,79532.0,79528.0,0.009]
[1744071275094,0.264047,79532.0,79526.0,0.012574]
[1744071275503,0.264047,79532.0,79529.0,0.009]
[1744071275697,0.264047,79532.0,79528.0,0.009]
[1744071275899,0.012573,79533.0,79528.0,0.009]
[1744071276102,0.012573,79535.0,79528.0,0.018]
[1744071276298,0.012572,79538.0,79530.0,0.012573]
[1744071276499,0.251455,79538.0,79531.0,0.264047]